[Event "Blixt-SM 2025"]
[Site "Norrköping, Sweden"]
[Date "2025.09.26"]
[Round "4.8"]
[White "Olsson, Simon"]
[Black "Johnson, Daniel"]
[Result "0-1"]
[TimeControl "3 min + 2 sec/move"]
[WhiteElo "2068"]
[BlackElo "2177"]

1. d4 {[%clk 00:03:02]} {[%emt 00:00:02]} Nf6 {[%clk 00:03:03]} {[%emt
00:00:02]} 2. c4 {[%clk 00:03:03]} {[%emt 00:00:01]} e6 {[%clk 00:03:03]} 3.
Nc3 {[%clk 00:03:05]} {[%emt 00:00:01]} d5 {[%clk 00:03:02]} {[%emt 00:00:03]}
4. cxd5 {[%clk 00:03:01]} {[%emt 00:00:06]} exd5 {[%clk 00:03:03]} 5. Bg5
{[%clk 00:03:02]} {[%emt 00:00:01]} c6 {[%clk 00:03:04]} {[%emt 00:00:02]} 6.
e3 {[%clk 00:03:03]} h6 {[%clk 00:03:04]} {[%emt 00:00:01]} 7. Bh4 {[%clk
00:02:46]} {[%emt 00:00:18]} Be7 {[%clk 00:03:05]} {[%emt 00:00:01]} 8. Bd3
{[%clk 00:02:47]} {[%emt 00:00:02]} O-O {[%clk 00:03:04]} {[%emt 00:00:03]} 9.
Qc2 {[%clk 00:02:48]} {[%emt 00:00:01]} Re8 {[%clk 00:02:59]} {[%emt 00:00:07]}
10. Nge2 {[%clk 00:02:44]} {[%emt 00:00:06]} Nbd7 {[%clk 00:02:56]} {[%emt
00:00:05]} 11. h3 {[%clk 00:02:41]} a5 {[%clk 00:02:54]} {[%emt 00:00:08]} 12.
g4 {[%clk 00:02:34]} b5 {[%clk 00:02:50]} {[%emt 00:00:15]} 13. g5 {[%clk
00:02:13]} Nh5 {[%clk 00:02:17]} {[%emt 00:00:59]} 14. Ng3 {[%clk 00:01:08]}
{[%emt 00:01:08]} Nxg3 {[%clk 00:01:51]} {[%emt 00:00:27]} 15. Bxg3 {[%clk
00:01:08]} {[%emt 00:00:01]} Bxg5 {[%clk 00:01:51]} {[%emt 00:00:02]} 16. O-O-O
{[%clk 00:01:07]} {[%emt 00:00:03]} Nb6 {[%clk 00:01:30]} {[%emt 00:00:23]} 17.
h4 {[%clk 00:00:54]} {[%emt 00:00:16]} Bf6 {[%clk 00:01:22]} {[%emt 00:00:09]}
18. Rdg1 {[%clk 00:00:52]} {[%emt 00:00:04]} Ba6 {[%clk 00:01:17]} {[%emt
00:00:07]} 19. Bf4 {[%clk 00:00:48]} {[%emt 00:00:06]} Kf8 {[%clk 00:01:03]}
{[%emt 00:00:16]} 20. Bf5 {[%clk 00:00:38]} {[%emt 00:00:12]} Nc4 {[%clk
00:00:54]} {[%emt 00:00:12]} 21. Bg4 {[%clk 00:00:25]} {[%emt 00:00:15]} Kg8
{[%clk 00:00:33]} {[%emt 00:00:22]} 22. Bf5 {[%clk 00:00:26]} {[%emt 00:00:02]}
Kh8 {[%clk 00:00:34]} {[%emt 00:00:01]} 23. Qe2 {[%clk 00:00:23]} {[%emt
00:00:05]} Nd6 {[%clk 00:00:18]} {[%emt 00:00:18]} 24. Bd3 {[%clk 00:00:21]}
{[%emt 00:00:04]} b4 {[%clk 00:00:07]} {[%emt 00:00:13]} 25. Bxa6 {[%clk
00:00:16]} {[%emt 00:00:07]} bxc3 {[%clk 00:00:08]} 26. bxc3 {[%clk 00:00:18]}
Ne4 {[%clk 00:00:09]} 27. Kc2 {[%clk 00:00:16]} {[%emt 00:00:04]} a4 {[%clk
00:00:09]} {[%emt 00:00:02]} 28. f3 {[%clk 00:00:14]} {[%emt 00:00:04]} Nxc3
{[%clk 00:00:07]} {[%emt 00:00:04]} 29. Kxc3 {[%clk 00:00:13]} {[%emt
00:00:03]} Qa5+ {[%clk 00:00:07]} 30. Kb2 {[%clk 00:00:15]} {[%emt 00:00:02]}
Bxd4+ {[%clk 00:00:06]} {[%emt 00:00:03]} 0-1

[Event "Blixt-SM 2025"]
[Site "Norrköping, Sweden"]
[Date "2025.09.26"]
[Round "6.4"]
[White "Persson, Richard"]
[Black "Nygren, Kim"]
[Result "1-0"]
[TimeControl "3 min + 2 sec/move"]
[WhiteTitle "CM"]
[BlackTitle "CM"]
[WhiteElo "2106"]
[BlackElo "2173"]

1. e4 {[%clk 00:03:01]} {[%emt 00:00:02]} c5 {[%clk 00:03:03]} {[%emt
00:00:02]} 2. Nf3 {[%clk 00:03:01]} {[%emt 00:00:02]} d6 {[%clk 00:03:04]} 3.
d4 {[%clk 00:03:02]} {[%emt 00:00:02]} cxd4 {[%clk 00:03:05]} {[%emt 00:00:01]}
4. Nxd4 {[%clk 00:03:03]} {[%emt 00:00:01]} Nf6 {[%clk 00:03:06]} 5. Nc3 {[%clk
00:03:04]} a6 {[%clk 00:03:06]} {[%emt 00:00:01]} 6. h3 {[%clk 00:03:05]}
{[%emt 00:00:02]} g6 {[%clk 00:03:02]} {[%emt 00:00:06]} 7. g4 {[%clk
00:02:53]} {[%emt 00:00:14]} Bg7 {[%clk 00:02:59]} {[%emt 00:00:05]} 8. Bg2
{[%clk 00:02:44]} {[%emt 00:00:11]} e5 {[%clk 00:02:17]} {[%emt 00:00:44]} 9.
Nde2 {[%clk 00:02:44]} {[%emt 00:00:02]} Nc6 {[%clk 00:02:18]} {[%emt
00:00:01]} 10. Be3 {[%clk 00:02:24]} {[%emt 00:00:21]} O-O {[%clk 00:02:07]}
{[%emt 00:00:13]} 11. Qd2 {[%clk 00:02:23]} {[%emt 00:00:04]} Re8 {[%clk
00:02:08]} {[%emt 00:00:02]} 12. O-O-O {[%clk 00:02:16]} {[%emt 00:00:08]} Be6
{[%clk 00:01:50]} {[%emt 00:00:20]} 13. Qxd6 {[%clk 00:01:52]} {[%emt
00:00:25]} Qc8 {[%clk 00:01:51]} {[%emt 00:00:02]} 14. Nd5 {[%clk 00:01:25]}
{[%emt 00:00:28]} Nxd5 {[%clk 00:01:34]} {[%emt 00:00:19]} 15. exd5 {[%clk
00:01:19]} {[%emt 00:00:09]} Bf8 {[%clk 00:01:30]} {[%emt 00:00:06]} 16. dxc6
{[%clk 00:01:19]} {[%emt 00:00:02]} Bxd6 {[%clk 00:01:18]} {[%emt 00:00:15]} 17.
cxb7 {[%clk 00:01:20]} {[%emt 00:00:01]} Qc4 {[%clk 00:00:39]} {[%emt
00:00:40]} 18. bxa8=Q {[%clk 00:01:08]} {[%emt 00:00:13]} Rxa8 {[%clk
00:00:40]} {[%emt 00:00:02]} 19. Bxa8 {[%clk 00:00:54]} {[%emt 00:00:15]} Bb4
{[%clk 00:00:26]} {[%emt 00:00:17]} 20. Nc3 {[%clk 00:00:30]} {[%emt 00:00:25]}
Qc8 {[%clk 00:00:17]} {[%emt 00:00:10]} 21. Bg5 {[%clk 00:00:25]} {[%emt
00:00:08]} Kg7 {[%clk 00:00:15]} {[%emt 00:00:06]} 22. Bd5 {[%clk 00:00:19]}
{[%emt 00:00:07]} Bxc3 {[%clk 00:00:15]} {[%emt 00:00:02]} 23. bxc3 {[%clk
00:00:19]} {[%emt 00:00:02]} Qxc3 {[%clk 00:00:12]} {[%emt 00:00:05]} 24. Bxe6
{[%clk 00:00:18]} {[%emt 00:00:03]} Qa1+ {[%clk 00:00:09]} {[%emt 00:00:05]} 25.
Kd2 {[%clk 00:00:18]} {[%emt 00:00:02]} Qd4+ {[%clk 00:00:10]} {[%emt
00:00:02]} 26. Ke2 {[%clk 00:00:16]} {[%emt 00:00:03]} Qe4+ {[%clk 00:00:11]}
{[%emt 00:00:01]} 27. Be3 {[%clk 00:00:10]} {[%emt 00:00:07]} fxe6 {[%clk
00:00:12]} {[%emt 00:00:02]} 28. Rc1 {[%clk 00:00:09]} {[%emt 00:00:03]} Qc4+
{[%clk 00:00:12]} {[%emt 00:00:02]} 29. Kd2 {[%clk 00:00:09]} {[%emt 00:00:02]}
Qd5+ {[%clk 00:00:13]} 30. Ke2 {[%clk 00:00:11]} Qc4+ {[%clk 00:00:14]} 31. Kf3
{[%clk 00:00:11]} {[%emt 00:00:01]} Qd5+ {[%clk 00:00:15]} {[%emt 00:00:02]} 32.
Kg3 {[%clk 00:00:12]} {[%emt 00:00:02]} Qxa2 {[%clk 00:00:13]} {[%emt
00:00:03]} 33. c4 {[%clk 00:00:13]} {[%emt 00:00:01]} h5 {[%clk 00:00:11]}
{[%emt 00:00:04]} 34. gxh5 {[%clk 00:00:13]} {[%emt 00:00:03]} gxh5 {[%clk
00:00:12]} {[%emt 00:00:01]} 35. h4 {[%clk 00:00:13]} Qe2 {[%clk 00:00:13]}
{[%emt 00:00:01]} 36. Rhg1 {[%clk 00:00:12]} {[%emt 00:00:03]} Kf6 {[%clk
00:00:14]} 37. Kh3 {[%clk 00:00:12]} {[%emt 00:00:02]} Qd3 {[%clk 00:00:11]}
{[%emt 00:00:05]} 38. c5 {[%clk 00:00:12]} {[%emt 00:00:02]} Qf5+ {[%clk
00:00:12]} {[%emt 00:00:01]} 39. Kg2 {[%clk 00:00:13]} {[%emt 00:00:01]} Qg4+
{[%clk 00:00:13]} {[%emt 00:00:02]} 40. Kf1 {[%clk 00:00:14]} Qh3+ {[%clk
00:00:04]} {[%emt 00:00:11]} 41. Ke1 {[%clk 00:00:14]} {[%emt 00:00:02]} Kf5
{[%clk 00:00:04]} {[%emt 00:00:02]} 42. c6 {[%clk 00:00:14]} Qh2 {[%clk
00:00:06]} {[%emt 00:00:01]} 43. Rf1 {[%clk 00:00:14]} {[%emt 00:00:02]} Qg2
{[%clk 00:00:06]} {[%emt 00:00:02]} 44. c7 {[%clk 00:00:14]} {[%emt 00:00:02]}
Qd5 {[%clk 00:00:04]} {[%emt 00:00:04]} 45. c8=Q {[%clk 00:00:12]} {[%emt
00:00:04]} Kg4 {[%clk 00:00:05]} {[%emt 00:00:01]} 46. Qc4+ {[%clk 00:00:12]}
{[%emt 00:00:02]} 1-0

[Event "Blixt-SM 2025"]
[Site "Norrköping, Sweden"]
[Date "2025.09.26"]
[Round "7.10"]
[White "Dahlstedt, Frans"]
[Black "Rogoz, Vladyslav"]
[Result "0-1"]
[TimeControl "3 min + 2 sec/move"]
[WhiteElo "1900"]
[BlackElo "2108"]

1. c4 {[%clk 00:03:02]} {[%emt 00:00:01]} e6 {[%clk 00:03:03]} {[%emt
00:00:02]} 2. g3 {[%clk 00:03:02]} {[%emt 00:00:01]} f5 {[%clk 00:03:00]}
{[%emt 00:00:05]} 3. Nc3 {[%clk 00:03:02]} {[%emt 00:00:02]} Nf6 {[%clk
00:03:01]} {[%emt 00:00:02]} 4. Bg2 {[%clk 00:03:02]} {[%emt 00:00:01]} Bb4
{[%clk 00:03:00]} {[%emt 00:00:03]} 5. e3 {[%clk 00:02:54]} {[%emt 00:00:10]}
O-O {[%clk 00:03:00]} {[%emt 00:00:02]} 6. Nge2 {[%clk 00:02:55]} {[%emt
00:00:01]} d6 {[%clk 00:03:00]} {[%emt 00:00:02]} 7. O-O {[%clk 00:02:53]}
{[%emt 00:00:04]} Bxc3 {[%clk 00:02:46]} {[%emt 00:00:16]} 8. Nxc3 {[%clk
00:02:52]} {[%emt 00:00:03]} Nbd7 {[%clk 00:02:38]} {[%emt 00:00:10]} 9. d4
{[%clk 00:02:51]} {[%emt 00:00:03]} Re8 {[%clk 00:02:36]} {[%emt 00:00:04]} 10.
Qc2 {[%clk 00:02:37]} {[%emt 00:00:16]} Nf8 {[%clk 00:02:34]} {[%emt 00:00:05]}
11. b3 {[%clk 00:02:28]} {[%emt 00:00:11]} e5 {[%clk 00:02:33]} {[%emt
00:00:03]} 12. dxe5 {[%clk 00:02:20]} {[%emt 00:00:09]} dxe5 {[%clk 00:02:34]}
{[%emt 00:00:01]} 13. Bb2 {[%clk 00:02:18]} {[%emt 00:00:04]} e4 {[%clk
00:02:33]} {[%emt 00:00:04]} 14. Rad1 {[%clk 00:02:14]} {[%emt 00:00:06]} Qe7
{[%clk 00:02:33]} {[%emt 00:00:02]} 15. Nd5 {[%clk 00:01:48]} {[%emt 00:00:28]}
Nxd5 {[%clk 00:02:32]} {[%emt 00:00:03]} 16. Rxd5 {[%clk 00:01:49]} {[%emt
00:00:01]} Be6 {[%clk 00:02:30]} {[%emt 00:00:04]} 17. Rd2 {[%clk 00:01:44]}
{[%emt 00:00:07]} Rad8 {[%clk 00:02:28]} {[%emt 00:00:04]} 18. Rfd1 {[%clk
00:01:44]} {[%emt 00:00:01]} Bf7 {[%clk 00:02:02]} {[%emt 00:00:28]} 19. Qc3
{[%clk 00:01:22]} {[%emt 00:00:25]} Ne6 {[%clk 00:02:02]} {[%emt 00:00:02]} 20.
Bh3 {[%clk 00:01:14]} {[%emt 00:00:09]} Bh5 {[%clk 00:01:59]} {[%emt 00:00:05]}
21. Rxd8 {[%clk 00:00:53]} {[%emt 00:00:23]} Rxd8 {[%clk 00:01:58]} {[%emt
00:00:03]} 22. Rxd8+ {[%clk 00:00:47]} {[%emt 00:00:08]} Qxd8 {[%clk 00:01:51]}
{[%emt 00:00:09]} 23. Qc1 {[%clk 00:00:35]} {[%emt 00:00:15]} g6 {[%clk
00:01:36]} {[%emt 00:00:17]} 24. Bf1 {[%clk 00:00:35]} {[%emt 00:00:02]} c5
{[%clk 00:01:13]} {[%emt 00:00:25]} 25. Qc3 {[%clk 00:00:35]} {[%emt 00:00:01]}
Kf7 {[%clk 00:01:13]} {[%emt 00:00:02]} 26. b4 {[%clk 00:00:25]} {[%emt
00:00:13]} b6 {[%clk 00:01:13]} {[%emt 00:00:02]} 27. bxc5 {[%clk 00:00:24]}
{[%emt 00:00:02]} bxc5 {[%clk 00:01:14]} 28. Qb3 {[%clk 00:00:16]} {[%emt
00:00:10]} Bf3 {[%clk 00:01:11]} {[%emt 00:00:05]} 29. Qb7+ {[%clk 00:00:12]}
{[%emt 00:00:06]} Qc7 {[%clk 00:01:09]} {[%emt 00:00:04]} 30. Qd5 {[%clk
00:00:10]} {[%emt 00:00:04]} Ke7 {[%clk 00:00:59]} {[%emt 00:00:13]} 31. Be5
{[%clk 00:00:11]} Qd7 {[%clk 00:00:57]} {[%emt 00:00:04]} 32. Qxd7+ {[%clk
00:00:08]} {[%emt 00:00:05]} Kxd7 {[%clk 00:00:58]} {[%emt 00:00:01]} 33. Bg2
{[%clk 00:00:06]} {[%emt 00:00:03]} Be2 {[%clk 00:00:58]} {[%emt 00:00:02]} 34.
Bf1 {[%clk 00:00:07]} {[%emt 00:00:02]} Bf3 {[%clk 00:00:57]} {[%emt 00:00:02]}
35. Bg2 {[%clk 00:00:08]} Bd1 {[%clk 00:00:57]} {[%emt 00:00:02]} 36. Bf1
{[%clk 00:00:07]} {[%emt 00:00:04]} Nd8 {[%clk 00:00:55]} {[%emt 00:00:03]} 37.
Kg2 {[%clk 00:00:06]} {[%emt 00:00:03]} Nc6 {[%clk 00:00:56]} {[%emt 00:00:02]}
38. Bc3 {[%clk 00:00:05]} {[%emt 00:00:02]} Nb4 {[%clk 00:00:54]} {[%emt
00:00:04]} 39. a3 {[%emt 00:00:04]} Nc2 {[%clk 00:00:55]} 40. a4 {[%clk
00:00:04]} {[%emt 00:00:02]} Na3 {[%clk 00:00:52]} {[%emt 00:00:05]} 41. Kg1
{[%clk 00:00:04]} {[%emt 00:00:01]} Bxa4 {[%clk 00:00:52]} {[%emt 00:00:02]} 42.
Be2 {[%clk 00:00:05]} Bb3 {[%clk 00:00:53]} 43. Kf1 {[%clk 00:00:05]} {[%emt
00:00:03]} Bxc4 {[%clk 00:00:53]} {[%emt 00:00:02]} 44. Bxc4 {[%clk 00:00:06]}
Nxc4 {[%clk 00:00:54]} {[%emt 00:00:01]} 45. Ke1 {[%clk 00:00:07]} Kc6 {[%clk
00:00:55]} {[%emt 00:00:02]} 46. Kd1 {[%clk 00:00:08]} Kb5 {[%clk 00:00:56]}
{[%emt 00:00:01]} 47. Kc2 {[%clk 00:00:08]} {[%emt 00:00:01]} Nd6 {[%clk
00:00:54]} {[%emt 00:00:03]} 48. Be5 {[%clk 00:00:08]} {[%emt 00:00:02]} Nc4
{[%clk 00:00:50]} {[%emt 00:00:06]} 49. Bf6 {[%clk 00:00:10]} a5 {[%clk
00:00:49]} {[%emt 00:00:03]} 50. Kb3 {[%clk 00:00:06]} {[%emt 00:00:06]} a4+
{[%clk 00:00:50]} {[%emt 00:00:01]} 51. Ka2 {[%clk 00:00:05]} {[%emt 00:00:03]}
Kb4 {[%clk 00:00:50]} {[%emt 00:00:02]} 52. h4 {[%clk 00:00:04]} {[%emt
00:00:03]} Nd2 {[%clk 00:00:48]} {[%emt 00:00:03]} 53. Bd8 {[%emt 00:00:03]}
0-1

[Event "Blixt-SM 2025"]
[Site "Norrköping, Sweden"]
[Date "2025.09.26"]
[Round "9.6"]
[White "Tadjerbashi, Amir"]
[Black "Johnson, Daniel"]
[Result "0-1"]
[TimeControl "3 min + 2 sec/move"]
[WhiteElo "2235"]
[BlackElo "2177"]

1. e4 {[%clk 00:03:02]} {[%emt 00:00:02]} e5 {[%clk 00:03:03]} {[%emt
00:00:02]} 2. Nf3 {[%clk 00:03:03]} Nc6 {[%clk 00:03:04]} {[%emt 00:00:02]} 3.
d4 {[%clk 00:03:04]} exd4 {[%clk 00:03:04]} {[%emt 00:00:01]} 4. Bc4 {[%clk
00:03:06]} Nf6 {[%clk 00:03:05]} {[%emt 00:00:01]} 5. e5 {[%clk 00:03:06]}
{[%emt 00:00:02]} d5 {[%clk 00:03:06]} {[%emt 00:00:01]} 6. Bb5 {[%clk
00:03:07]} {[%emt 00:00:01]} Ne4 {[%clk 00:03:06]} 7. Nxd4 {[%clk 00:03:08]}
{[%emt 00:00:02]} Bc5 {[%clk 00:03:03]} {[%emt 00:00:06]} 8. Be3 {[%clk
00:03:08]} {[%emt 00:00:02]} O-O {[%clk 00:03:02]} {[%emt 00:00:02]} 9. Nxc6
{[%clk 00:03:08]} {[%emt 00:00:02]} bxc6 {[%clk 00:03:02]} {[%emt 00:00:02]} 10.
Bxc5 {[%clk 00:03:09]} {[%emt 00:00:02]} Nxc5 {[%clk 00:03:03]} {[%emt
00:00:01]} 11. Bxc6 {[%clk 00:03:09]} {[%emt 00:00:01]} Rb8 {[%clk 00:03:04]}
{[%emt 00:00:02]} 12. Qxd5 {[%clk 00:02:59]} {[%emt 00:00:12]} Qe7 {[%clk
00:03:05]} 13. O-O {[%clk 00:02:58]} {[%emt 00:00:03]} Ba6 {[%clk 00:03:05]}
{[%emt 00:00:01]} 14. Re1 {[%clk 00:02:46]} {[%emt 00:00:14]} Rxb2 {[%clk
00:03:05]} {[%emt 00:00:02]} 15. Qd2 {[%clk 00:02:17]} {[%emt 00:00:31]} Rd8
{[%clk 00:02:34]} {[%emt 00:00:33]} 16. Qc3 {[%clk 00:02:16]} {[%emt 00:00:04]}
Rb6 {[%clk 00:02:31]} {[%emt 00:00:05]} 17. Bf3 {[%clk 00:02:12]} {[%emt
00:00:06]} Ne6 {[%clk 00:02:30]} {[%emt 00:00:03]} 18. Nd2 {[%clk 00:01:38]}
{[%emt 00:00:36]} Nd4 {[%clk 00:02:28]} {[%emt 00:00:04]} 19. Bd1 {[%clk
00:01:28]} {[%emt 00:00:13]} Rc6 {[%clk 00:02:14]} {[%emt 00:00:15]} 20. Qb2
{[%clk 00:01:27]} {[%emt 00:00:04]} Rb6 {[%clk 00:02:01]} {[%emt 00:00:15]} 21.
Qc3 {[%clk 00:01:28]} Bb7 {[%clk 00:02:00]} {[%emt 00:00:03]} 22. Nb3 {[%clk
00:01:14]} {[%emt 00:00:16]} Nf5 {[%clk 00:01:42]} {[%emt 00:00:19]} 23. Bg4
{[%clk 00:01:00]} {[%emt 00:00:16]} Nh4 {[%clk 00:01:03]} {[%emt 00:00:41]} 24.
g3 {[%clk 00:00:49]} {[%emt 00:00:14]} Rg6 {[%clk 00:01:03]} {[%emt 00:00:01]}
25. Be2 {[%clk 00:00:37]} {[%emt 00:00:15]} Qe6 {[%clk 00:01:02]} {[%emt
00:00:03]} 26. Rad1 {[%clk 00:00:25]} {[%emt 00:00:14]} Re8 {[%clk 00:00:47]}
{[%emt 00:00:16]} 27. Na5 {[%clk 00:00:21]} {[%emt 00:00:06]} Ba8 {[%clk
00:00:46]} {[%emt 00:00:03]} 28. f4 {[%clk 00:00:14]} {[%emt 00:00:09]} h5
{[%clk 00:00:34]} {[%emt 00:00:15]} 29. Qe3 {[%clk 00:00:09]} {[%emt 00:00:07]}
Nf5 {[%clk 00:00:16]} {[%emt 00:00:20]} 30. Qf2 {[%clk 00:00:10]} {[%emt
00:00:01]} Nh6 {[%clk 00:00:10]} {[%emt 00:00:08]} 31. Bf3 {[%clk 00:00:10]}
{[%emt 00:00:02]} Bxf3 {[%clk 00:00:09]} {[%emt 00:00:02]} 32. Qxf3 {[%clk
00:00:11]} {[%emt 00:00:02]} Qb6+ {[%clk 00:00:10]} 33. Kg2 {[%clk 00:00:06]}
{[%emt 00:00:07]} Qxa5 {[%clk 00:00:11]} 34. Qxh5 {[%clk 00:00:07]} {[%emt
00:00:02]} Qxa2 {[%clk 00:00:07]} {[%emt 00:00:06]} 35. Qe2 {[%clk 00:00:08]}
{[%emt 00:00:01]} Qa4 {[%clk 00:00:05]} {[%emt 00:00:03]} 36. Rd3 {[%clk
00:00:09]} {[%emt 00:00:02]} Qxf4 {[%clk 00:00:05]} {[%emt 00:00:01]} 37. Kh1
{[%clk 00:00:09]} {[%emt 00:00:02]} Qc4 {[%clk 00:00:05]} {[%emt 00:00:02]} 38.
Red1 {[%clk 00:00:10]} {[%emt 00:00:01]} Qc6+ {[%clk 00:00:06]} 39. Kg1 {[%clk
00:00:11]} Ng4 {[%clk 00:00:05]} {[%emt 00:00:03]} 40. Rd4 {[%clk 00:00:08]}
{[%emt 00:00:05]} Nxe5 {[%clk 00:00:05]} {[%emt 00:00:02]} 41. Qg2 {[%clk
00:00:06]} {[%emt 00:00:04]} Nf3+ {[%clk 00:00:05]} {[%emt 00:00:03]} 42. Kh1
{[%clk 00:00:06]} Nxd4 {[%clk 00:00:06]} {[%emt 00:00:01]} 43. Rxd4 {[%clk
00:00:07]} Re1# {[%clk 00:00:06]} 0-1

[Event "Blixt-SM 2025"]
[Site "Norrköping, Sweden"]
[Date "2025.09.26"]
[Round "11.2"]
[White "Carlsson, Ludvig"]
[Black "Johnson, Daniel"]
[Result "0-1"]
[TimeControl "3 min + 2 sec/move"]
[WhiteTitle "IM"]
[WhiteElo "2389"]
[BlackElo "2177"]

1. b3 {[%clk 00:03:03]} d5 {[%clk 00:03:03]} {[%emt 00:00:02]} 2. Bb2 {[%clk
00:03:04]} Nf6 {[%clk 00:03:04]} {[%emt 00:00:01]} 3. e3 {[%clk 00:03:04]}
{[%emt 00:00:02]} c6 {[%clk 00:03:04]} {[%emt 00:00:02]} 4. c4 {[%clk
00:03:00]} {[%emt 00:00:05]} h6 {[%clk 00:03:04]} {[%emt 00:00:02]} 5. Nf3
{[%clk 00:02:54]} {[%emt 00:00:08]} Bf5 {[%clk 00:03:04]} {[%emt 00:00:02]} 6.
Nc3 {[%clk 00:02:55]} {[%emt 00:00:02]} e6 {[%clk 00:03:03]} {[%emt 00:00:03]}
7. Be2 {[%clk 00:02:45]} {[%emt 00:00:12]} Be7 {[%clk 00:03:00]} {[%emt
00:00:05]} 8. Rc1 {[%clk 00:02:35]} {[%emt 00:00:12]} Bh7 {[%clk 00:02:58]}
{[%emt 00:00:04]} 9. h3 {[%clk 00:02:26]} {[%emt 00:00:11]} Nbd7 {[%clk
00:02:53]} {[%emt 00:00:06]} 10. d3 {[%clk 00:02:23]} {[%emt 00:00:05]} a5
{[%clk 00:02:49]} {[%emt 00:00:06]} 11. a3 {[%clk 00:02:23]} {[%emt 00:00:02]}
O-O {[%clk 00:02:16]} {[%emt 00:00:35]} 12. g4 {[%clk 00:02:24]} {[%emt
00:00:02]} dxc4 {[%clk 00:01:50]} {[%emt 00:00:29]} 13. bxc4 {[%clk 00:02:24]}
{[%emt 00:00:01]} Nc5 {[%clk 00:01:50]} 14. Nd4 {[%clk 00:02:14]} {[%emt
00:00:12]} Nfd7 {[%clk 00:01:45]} {[%emt 00:00:07]} 15. f4 {[%clk 00:02:02]}
{[%emt 00:00:15]} Bh4+ {[%clk 00:01:39]} {[%emt 00:00:08]} 16. Kf1 {[%clk
00:02:01]} {[%emt 00:00:03]} Be7 {[%clk 00:01:19]} {[%emt 00:00:22]} 17. Kg2
{[%clk 00:01:50]} {[%emt 00:00:13]} e5 {[%clk 00:01:16]} {[%emt 00:00:05]} 18.
Nf3 {[%clk 00:01:47]} {[%emt 00:00:04]} exf4 {[%clk 00:01:13]} {[%emt
00:00:06]} 19. exf4 {[%clk 00:01:47]} {[%emt 00:00:02]} Bd6 {[%clk 00:01:13]}
20. f5 {[%clk 00:01:46]} {[%emt 00:00:04]} Re8 {[%clk 00:01:08]} {[%emt
00:00:06]} 21. Re1 {[%clk 00:01:44]} {[%emt 00:00:04]} Bb8 {[%clk 00:00:26]}
{[%emt 00:00:44]} 22. d4 {[%clk 00:01:29]} {[%emt 00:00:18]} Qc7 {[%clk
00:00:23]} {[%emt 00:00:05]} 23. Ng1 {[%clk 00:01:19]} {[%emt 00:00:12]} Qh2+
{[%clk 00:00:16]} {[%emt 00:00:08]} 24. Kf1 {[%clk 00:01:19]} {[%emt 00:00:02]}
Bg3 {[%clk 00:00:17]} {[%emt 00:00:02]} 0-1

[Event "Blixt-SM 2025"]
[Site "Norrköping, Sweden"]
[Date "2025.09.26"]
[Round "1.7"]
[White "Dingertz, Gustav"]
[Black "Lindh, Fredrik"]
[Result "0-1"]
[TimeControl "3 min + 2 sec/move"]
[BlackTitle "FM"]
[WhiteElo "2011"]
[BlackElo "2249"]

1. e4 {[%clk 00:03:02]} {[%emt 00:00:02]} c5 {[%clk 00:03:03]} 2. Nf3 {[%clk
00:03:03]} e6 {[%clk 00:03:05]} {[%emt 00:00:01]} 3. c3 {[%clk 00:03:04]}
{[%emt 00:00:01]} d5 {[%clk 00:03:01]} {[%emt 00:00:06]} 4. exd5 {[%clk
00:03:02]} {[%emt 00:00:03]} Qxd5 {[%clk 00:03:02]} {[%emt 00:00:01]} 5. d4
{[%clk 00:02:59]} {[%emt 00:00:06]} cxd4 {[%clk 00:02:58]} {[%emt 00:00:05]} 6.
cxd4 {[%clk 00:02:59]} {[%emt 00:00:02]} Nc6 {[%clk 00:02:52]} {[%emt
00:00:08]} 7. Nc3 {[%clk 00:02:58]} {[%emt 00:00:03]} Qa5 {[%clk 00:02:53]} 8.
Be2 {[%clk 00:02:19]} {[%emt 00:00:41]} Nf6 {[%clk 00:02:52]} {[%emt 00:00:03]}
9. O-O {[%clk 00:02:19]} {[%emt 00:00:02]} Be7 {[%clk 00:02:49]} {[%emt
00:00:05]} 10. Re1 {[%clk 00:01:51]} {[%emt 00:00:30]} O-O {[%clk 00:02:45]}
{[%emt 00:00:05]} 11. Bc4 {[%clk 00:01:46]} {[%emt 00:00:07]} Rd8 {[%clk
00:02:16]} {[%emt 00:00:32]} 12. Be3 {[%clk 00:01:35]} {[%emt 00:00:13]} Bd7
{[%clk 00:02:02]} {[%emt 00:00:16]} 13. a3 {[%clk 00:01:11]} {[%emt 00:00:27]}
Rac8 {[%clk 00:01:51]} {[%emt 00:00:13]} 14. Ba2 {[%clk 00:01:04]} {[%emt
00:00:09]} a6 {[%clk 00:01:36]} {[%emt 00:00:17]} 15. Qd3 {[%clk 00:00:51]}
{[%emt 00:00:15]} Be8 {[%clk 00:01:27]} {[%emt 00:00:12]} 16. h3 {[%clk
00:00:28]} {[%emt 00:00:24]} Qh5 {[%clk 00:01:02]} {[%emt 00:00:26]} 17. Qe2
{[%clk 00:00:15]} {[%emt 00:00:16]} b5 {[%clk 00:00:37]} {[%emt 00:00:27]} 18.
Rac1 {[%clk 00:00:14]} {[%emt 00:00:04]} Bf8 {[%clk 00:00:30]} {[%emt
00:00:09]} 19. Bb1 {[%clk 00:00:10]} {[%emt 00:00:06]} Na5 {[%clk 00:00:24]}
{[%emt 00:00:08]} 20. Bg5 {[%clk 00:00:05]} {[%emt 00:00:07]} Be7 {[%clk
00:00:15]} {[%emt 00:00:10]} 21. Rcd1 {[%clk 00:00:04]} {[%emt 00:00:02]} Nc4
{[%clk 00:00:15]} {[%emt 00:00:02]} 22. Bd3 {[%clk 00:00:03]} {[%emt 00:00:03]}
h6 {[%clk 00:00:12]} {[%emt 00:00:06]} 23. Bc1 {[%clk 00:00:04]} Nxa3 {[%clk
00:00:08]} {[%emt 00:00:06]} 24. bxa3 {[%clk 00:00:05]} {[%emt 00:00:02]} Rxc3
{[%clk 00:00:09]} 25. Bb2 {[%clk 00:00:06]} Rcc8 {[%clk 00:00:09]} {[%emt
00:00:02]} 26. Qd2 {[%emt 00:00:07]} Nd5 {[%clk 00:00:04]} {[%emt 00:00:05]} 27.
Ne5 {[%clk 00:00:04]} {[%emt 00:00:02]} Bg5 {[%clk 00:00:03]} {[%emt 00:00:02]}
28. Qa5 {[%clk 00:00:04]} {[%emt 00:00:03]} Nf4 {[%clk 00:00:04]} 0-1